[Event "Titled Tuesday Blitz July 20 2021"]
[White "Tarigan, Gilbert Elroy"]
[Black "Eynullayev, Atilla"]
[WhiteFideId "7108133"]
[BlackFideId "13413570"]
[WhiteElo "2714"]
[BlackElo "2455"]
[Result "1-0"]
[Round "02"]
[TimeControl "180+1"]
[Date "2021.07.21"]
[WhiteClock "0:00:06"]
[BlackClock "0:00:06"]

1. d4 {[%clk 0:03:00]}  Nf6 {[%clk 0:03:00]} 2. Nd2 {[%clk 0:02:56]}  d5 {[%clk 0:02:58]} 3. Ngf3 {[%clk 0:02:52]}  Bf5 {[%clk 0:02:57]} 4. e3 {[%clk 0:02:49]}  e6 {[%clk 0:02:57]} 5. Bd3 {[%clk 0:02:50]}  Bxd3 {[%clk 0:02:56]} 6. cxd3 {[%clk 0:02:51]}  Bd6 {[%clk 0:02:55]} 7. O-O {[%clk 0:02:52]}  O-O {[%clk 0:02:48]} 8. e4 {[%clk 0:02:52]}  Be7 {[%clk 0:02:37]} 9. Re1 {[%clk 0:02:49]}  Nbd7 {[%clk 0:02:27]} 10. Nb3 {[%clk 0:02:45]}  a5 {[%clk 0:02:20]} 11. Bg5 {[%clk 0:02:34]}  a4 {[%clk 0:02:18]} 12. Nbd2 {[%clk 0:02:20]}  c5 {[%clk 0:02:14]} 13. e5 {[%clk 0:02:17]}  Ne8 {[%clk 0:02:11]} 14. h4 {[%clk 0:01:53]}  h6 {[%clk 0:01:56]} 15. Bxe7 {[%clk 0:01:50]}  Qxe7 {[%clk 0:01:57]} 16. Rc1 {[%clk 0:01:46]}  cxd4 {[%clk 0:01:44]} 17. Nf1 {[%clk 0:01:33]}  Qb4 {[%clk 0:01:37]} 18. Re2 {[%clk 0:01:24]}  a3 {[%clk 0:01:18]} 19. b3 {[%clk 0:01:19]}  f6 {[%clk 0:01:09]} 20. Ng3 {[%clk 0:01:00]}  f5 {[%clk 0:00:49]} 21. Rec2 {[%clk 0:00:52]}  Qe7 {[%clk 0:00:18]} 22. Ne2 {[%clk 0:00:46]}  g5 {[%clk 0:00:18]} 23. hxg5 {[%clk 0:00:38]}  hxg5 {[%clk 0:00:19]} 24. Qd2 {[%clk 0:00:20]}  f4 {[%clk 0:00:19]} 25. Nexd4 {[%clk 0:00:13]}  g4 {[%clk 0:00:19]} 26. Nh2 {[%clk 0:00:13]}  Nxe5 {[%clk 0:00:19]} 27. Re1 {[%clk 0:00:13]}  Qf6 {[%clk 0:00:13]} 28. Nxe6 {[%clk 0:00:10]}  Qxe6 {[%clk 0:00:12]} 29. d4 {[%clk 0:00:10]}  g3 {[%clk 0:00:08]} 30. Rxe5 {[%clk 0:00:09]}  gxh2+ {[%clk 0:00:08]} 31. Kxh2 {[%clk 0:00:09]}  Qh6+ {[%clk 0:00:09]} 32. Kg1 {[%clk 0:00:10]}  Nf6 {[%clk 0:00:09]} 33. Qe2 {[%clk 0:00:08]}  Rae8 {[%clk 0:00:08]} 34. Rc7 {[%clk 0:00:08]}  f3 {[%clk 0:00:08]} 35. Qxf3 {[%clk 0:00:07]}  Rxe5 {[%clk 0:00:08]} 36. dxe5 {[%clk 0:00:08]}  Qc1+ {[%clk 0:00:03]} 37. Kh2 {[%clk 0:00:08]}  Qh6+ {[%clk 0:00:04]} 38. Kg1 {[%clk 0:00:08]}  Nh7 {[%clk 0:00:04]} 39. Qxd5+ {[%clk 0:00:06]}  Kh8 {[%clk 0:00:04]} 40. e6 {[%clk 0:00:06]}  Qf6 {[%clk 0:00:04]} 41. Qd2 {[%clk 0:00:04]}  Ng5 {[%clk 0:00:05]} 42. e7 {[%clk 0:00:03]}  Qa1+ {[%clk 0:00:05]} 43. Kh2 {[%clk 0:00:03]}  Qe5+ {[%clk 0:00:06]} 44. f4 {[%clk 0:00:02]}  Nf3+ {[%clk 0:00:07]} 45. gxf3 {[%clk 0:00:02]}  Qh5+ {[%clk 0:00:08]} 46. Kg3 {[%clk 0:00:03]}  Rg8+ {[%clk 0:00:08]} 47. Kf2 {[%clk 0:00:04]}  Qh2+ {[%clk 0:00:09]} 48. Ke3 {[%clk 0:00:05]}  Qg1+ {[%clk 0:00:09]} 49. Ke4 {[%clk 0:00:05]}  Qg6+ {[%clk 0:00:09]} 50. f5 {[%clk 0:00:06]}  Qf6 {[%clk 0:00:08]} 51. Qd4 {[%clk 0:00:06]}  Qxd4+ {[%clk 0:00:06]} 52. Kxd4 {[%clk 0:00:07]}  Kg7 {[%clk 0:00:06]} 53. e8=Q+ {[%clk 0:00:06]} 1-0


[Site "https://www.chess.com"]

[Event "Titled Tuesday Blitz July 20 2021"]
[White "Turgut, Aydin"]
[Black "Gavilan Diaz, Mario"]
[WhiteFideId "2078791"]
[BlackFideId "2260905"]
[WhiteElo "2138"]
[BlackElo "2262"]
[Result "1-0"]
[Round "02"]
[TimeControl "180+1"]
[Date "2021.07.21"]
[WhiteClock "0:01:10"]
[BlackClock "0:00:46"]

1. e4 {[%clk 0:03:00]}  c5 {[%clk 0:02:56]} 2. Nf3 {[%clk 0:03:01]}  Nf6 {[%clk 0:02:54]} 3. e5 {[%clk 0:02:59]}  Nd5 {[%clk 0:02:54]} 4. Nc3 {[%clk 0:03:00]}  e6 {[%clk 0:02:53]} 5. Ne4 {[%clk 0:02:59]}  f5 {[%clk 0:02:50]} 6. Nc3 {[%clk 0:02:59]}  Nc6 {[%clk 0:02:42]} 7. Nxd5 {[%clk 0:02:42]}  exd5 {[%clk 0:02:42]} 8. d4 {[%clk 0:02:42]}  d6 {[%clk 0:02:41]} 9. Bf4 {[%clk 0:02:34]}  dxe5 {[%clk 0:02:34]} 10. Nxe5 {[%clk 0:02:24]}  Nxe5 {[%clk 0:02:05]} 11. Bxe5 {[%clk 0:02:21]}  Be6 {[%clk 0:01:57]} 12. Qh5+ {[%clk 0:02:05]}  Kd7 {[%clk 0:01:29]} 13. Bb5+ {[%clk 0:01:59]}  Kc8 {[%clk 0:01:28]} 14. O-O {[%clk 0:01:58]}  Bd6 {[%clk 0:01:15]} 15. Rfe1 {[%clk 0:01:38]}  g6 {[%clk 0:01:12]} 16. Qf3 {[%clk 0:01:22]}  Rf8 {[%clk 0:01:05]} 17. Bg7 {[%clk 0:01:11]}  Rf7 {[%clk 0:00:59]} 18. Rxe6 {[%clk 0:01:10]}  Rxg7 {[%clk 0:00:47]} 19. Re8 {[%clk 0:01:09]}  Qxe8 {[%clk 0:00:46]} 20. Bxe8 {[%clk 0:01:10]} 1-0


[Site "https://www.chess.com"]

[Event "Titled Tuesday Blitz July 20 2021"]
[White "Wagner, Dennis"]
[Black "Urjubdshzirov, Erdni"]
[WhiteFideId "24650684"]
[BlackFideId "4186451"]
[WhiteElo "2739"]
[BlackElo "2464"]
[Result "1-0"]
[Round "02"]
[TimeControl "180+1"]
[Date "2021.07.21"]
[WhiteClock "0:00:16"]
[BlackClock "0:00:16"]

1. c4 {[%clk 0:02:56]}  Nf6 {[%clk 0:02:58]} 2. Nc3 {[%clk 0:02:52]}  e6 {[%clk 0:02:59]} 3. d4 {[%clk 0:02:48]}  Bb4 {[%clk 0:02:56]} 4. Qc2 {[%clk 0:02:47]}  O-O {[%clk 0:02:56]} 5. Nf3 {[%clk 0:02:44]}  b6 {[%clk 0:02:55]} 6. e4 {[%clk 0:02:26]}  d5 {[%clk 0:02:45]} 7. e5 {[%clk 0:02:22]}  Ne4 {[%clk 0:02:17]} 8. Bd3 {[%clk 0:02:19]}  Bb7 {[%clk 0:02:15]} 9. O-O {[%clk 0:02:17]}  Bxc3 {[%clk 0:02:13]} 10. bxc3 {[%clk 0:02:17]}  Nd7 {[%clk 0:02:05]} 11. Bxe4 {[%clk 0:02:11]}  dxe4 {[%clk 0:02:05]} 12. Ng5 {[%clk 0:02:11]}  h6 {[%clk 0:01:45]} 13. Nxe4 {[%clk 0:02:11]}  Qh4 {[%clk 0:01:45]} 14. f3 {[%clk 0:01:38]}  c5 {[%clk 0:01:36]} 15. Be3 {[%clk 0:01:30]}  Rac8 {[%clk 0:01:32]} 16. Nd6 {[%clk 0:01:27]}  Rc7 {[%clk 0:01:27]} 17. Nxb7 {[%clk 0:01:24]}  Rxb7 {[%clk 0:01:27]} 18. f4 {[%clk 0:01:22]}  Rc7 {[%clk 0:01:25]} 19. d5 {[%clk 0:01:20]}  Rb8 {[%clk 0:01:01]} 20. a4 {[%clk 0:01:20]}  Nf8 {[%clk 0:00:57]} 21. Qf2 {[%clk 0:01:15]}  Qh5 {[%clk 0:00:52]} 22. Qc2 {[%clk 0:01:06]}  Qh4 {[%clk 0:00:43]} 23. Rad1 {[%clk 0:01:05]}  Rd7 {[%clk 0:00:38]} 24. Qe4 {[%clk 0:01:04]}  Rbd8 {[%clk 0:00:35]} 25. Rd2 {[%clk 0:01:02]}  f5 {[%clk 0:00:23]} 26. Qf3 {[%clk 0:00:56]}  Qe7 {[%clk 0:00:22]} 27. Rfd1 {[%clk 0:00:54]}  Qf7 {[%clk 0:00:19]} 28. h3 {[%clk 0:00:50]}  a6 {[%clk 0:00:17]} 29. Kh2 {[%clk 0:00:50]}  b5 {[%clk 0:00:16]} 30. axb5 {[%clk 0:00:49]}  axb5 {[%clk 0:00:16]} 31. dxe6 {[%clk 0:00:33]}  Qxe6 {[%clk 0:00:15]} 32. cxb5 {[%clk 0:00:29]}  Rxd2 {[%clk 0:00:14]} 33. Rxd2 {[%clk 0:00:30]}  Rxd2 {[%clk 0:00:14]} 34. Bxd2 {[%clk 0:00:31]}  Qd7 {[%clk 0:00:14]} 35. Qe2 {[%clk 0:00:23]}  Ne6 {[%clk 0:00:14]} 36. Be3 {[%clk 0:00:22]}  Qd5 {[%clk 0:00:15]} 37. b6 {[%clk 0:00:17]}  Qb3 {[%clk 0:00:15]} 38. Qa6 {[%clk 0:00:16]}  Qxc3 {[%clk 0:00:15]} 39. b7 {[%clk 0:00:16]}  Qxe3 {[%clk 0:00:15]} 40. Qxe6+ {[%clk 0:00:15]}  Kh7 {[%clk 0:00:16]} 41. Qxf5+ {[%clk 0:00:16]}  Kg8 {[%clk 0:00:16]} 42. b8=Q# {[%clk 0:00:16]} 1-0


[Site "https://www.chess.com"]

[Event "Titled Tuesday Blitz July 20 2021"]
[White "Zakhartsov, Vladimir"]
[Black "Primbetov, Kazbek"]
[WhiteFideId "4145097"]
[BlackFideId "13702297"]
[WhiteElo "2704"]
[BlackElo "2453"]
[Result "1-0"]
[Round "02"]
[TimeControl "180+1"]
[Date "2021.07.21"]
[WhiteClock "0:01:20"]
[BlackClock "0:00:22"]

1. d4 {[%clk 0:03:00]}  Nf6 {[%clk 0:02:53]} 2. c4 {[%clk 0:03:00]}  g6 {[%clk 0:02:53]} 3. Nc3 {[%clk 0:02:59]}  Bg7 {[%clk 0:02:53]} 4. e4 {[%clk 0:02:59]}  d6 {[%clk 0:02:54]} 5. h3 {[%clk 0:02:58]}  O-O {[%clk 0:02:30]} 6. Be3 {[%clk 0:02:55]}  e5 {[%clk 0:02:19]} 7. d5 {[%clk 0:02:54]}  a5 {[%clk 0:02:16]} 8. g4 {[%clk 0:02:53]}  Na6 {[%clk 0:02:10]} 9. Nge2 {[%clk 0:02:52]}  c6 {[%clk 0:01:32]} 10. Ng3 {[%clk 0:02:42]}  cxd5 {[%clk 0:01:31]} 11. cxd5 {[%clk 0:02:43]}  Nc5 {[%clk 0:01:31]} 12. Be2 {[%clk 0:02:17]}  a4 {[%clk 0:01:29]} 13. g5 {[%clk 0:02:08]}  Nfd7 {[%clk 0:01:26]} 14. Qd2 {[%clk 0:02:06]}  Qa5 {[%clk 0:01:23]} 15. Nb5 {[%clk 0:02:03]}  Qb6 {[%clk 0:01:20]} 16. Rc1 {[%clk 0:01:55]}  f5 {[%clk 0:01:05]} 17. gxf6 {[%clk 0:01:51]}  Nxf6 {[%clk 0:01:01]} 18. Nxd6 {[%clk 0:01:49]}  Nfd7 {[%clk 0:00:26]} 19. Nb5 {[%clk 0:01:39]}  Ra5 {[%clk 0:00:22]} 20. Qb4 {[%clk 0:01:20]} 1-0


[Site "https://www.chess.com"]

[Event "Titled Tuesday Blitz July 20 2021"]
[White "Zhigalko, Sergei"]
[Black "Czerw, Dawid"]
[WhiteFideId "13502956"]
[BlackFideId "1145746"]
[WhiteElo "2662"]
[BlackElo "2075"]
[Result "1/2-1/2"]
[Round "02"]
[TimeControl "180+1"]
[Date "2021.07.20"]
[WhiteClock "0:00:03"]
[BlackClock "0:00:07"]

1. e4 {[%clk 0:03:00]}  c5 {[%clk 0:02:59]} 2. Nf3 {[%clk 0:03:01]}  g6 {[%clk 0:02:59]} 3. c3 {[%clk 0:03:01]}  Bg7 {[%clk 0:02:57]} 4. d4 {[%clk 0:03:01]}  cxd4 {[%clk 0:02:58]} 5. cxd4 {[%clk 0:03:01]}  d5 {[%clk 0:02:57]} 6. e5 {[%clk 0:03:02]}  Bg4 {[%clk 0:02:57]} 7. Bb5+ {[%clk 0:03:02]}  Nd7 {[%clk 0:02:55]} 8. O-O {[%clk 0:03:01]}  e6 {[%clk 0:02:54]} 9. Nbd2 {[%clk 0:02:58]}  Ne7 {[%clk 0:02:51]} 10. h3 {[%clk 0:02:58]}  Bxf3 {[%clk 0:02:49]} 11. Nxf3 {[%clk 0:02:59]}  O-O {[%clk 0:02:49]} 12. Re1 {[%clk 0:02:49]}  a6 {[%clk 0:02:43]} 13. Bd3 {[%clk 0:02:49]}  Nc6 {[%clk 0:02:41]} 14. Be3 {[%clk 0:02:40]}  f6 {[%clk 0:02:31]} 15. exf6 {[%clk 0:02:38]}  Qxf6 {[%clk 0:02:31]} 16. Rc1 {[%clk 0:02:37]}  Rac8 {[%clk 0:02:11]} 17. a3 {[%clk 0:02:37]}  Kh8 {[%clk 0:01:45]} 18. Qd2 {[%clk 0:02:33]}  e5 {[%clk 0:01:30]} 19. dxe5 {[%clk 0:02:20]}  Ndxe5 {[%clk 0:01:29]} 20. Nxe5 {[%clk 0:02:18]}  Nxe5 {[%clk 0:01:28]} 21. Be2 {[%clk 0:01:57]}  Nc4 {[%clk 0:01:23]} 22. Bxc4 {[%clk 0:01:52]}  dxc4 {[%clk 0:01:23]} 23. Rc2 {[%clk 0:01:51]}  b5 {[%clk 0:01:22]} 24. Bg5 {[%clk 0:01:40]}  Qb6 {[%clk 0:01:15]} 25. Bh6 {[%clk 0:01:36]}  Bxh6 {[%clk 0:01:02]} 26. Qxh6 {[%clk 0:01:36]}  Rf7 {[%clk 0:01:02]} 27. Re3 {[%clk 0:01:29]}  Rcf8 {[%clk 0:00:57]} 28. Rce2 {[%clk 0:01:28]}  Kg8 {[%clk 0:00:54]} 29. h4 {[%clk 0:01:15]}  Qc5 {[%clk 0:00:38]} 30. Re5 {[%clk 0:00:35]}  Qd4 {[%clk 0:00:29]} 31. R5e3 {[%clk 0:00:23]}  Qf4 {[%clk 0:00:25]} 32. Qxf4 {[%clk 0:00:19]}  Rxf4 {[%clk 0:00:26]} 33. g3 {[%clk 0:00:20]}  R4f6 {[%clk 0:00:24]} 34. Re7 {[%clk 0:00:17]}  R8f7 {[%clk 0:00:24]} 35. Re8+ {[%clk 0:00:10]}  Kg7 {[%clk 0:00:24]} 36. Kg2 {[%clk 0:00:08]}  Rf8 {[%clk 0:00:20]} 37. R8e7+ {[%clk 0:00:07]}  R8f7 {[%clk 0:00:20]} 38. Re8 {[%clk 0:00:08]}  Rf8 {[%clk 0:00:21]} 39. R8e5 {[%clk 0:00:08]}  Rb8 {[%clk 0:00:19]} 40. Rc5 {[%clk 0:00:08]}  Rf7 {[%clk 0:00:17]} 41. Re6 {[%clk 0:00:07]}  a5 {[%clk 0:00:16]} 42. Ra6 {[%clk 0:00:05]}  b4 {[%clk 0:00:06]} 43. Rxc4 {[%clk 0:00:04]}  bxa3 {[%clk 0:00:06]} 44. bxa3 {[%clk 0:00:05]}  Rb2 {[%clk 0:00:06]} 45. Rf4 {[%clk 0:00:04]}  Rxf4 {[%clk 0:00:07]} 46. gxf4 {[%clk 0:00:05]}  Rb5 {[%clk 0:00:07]} 47. Kg3 {[%clk 0:00:04]}  Kf7 {[%clk 0:00:06]} 48. f3 {[%clk 0:00:03]}  h5 {[%clk 0:00:06]} 49. Ra7+ {[%clk 0:00:04]}  Kf6 {[%clk 0:00:06]} 50. Ra6+ {[%clk 0:00:05]}  Kf5 {[%clk 0:00:05]} 51. a4 {[%clk 0:00:05]}  Rc5 {[%clk 0:00:05]} 52. Ra8 {[%clk 0:00:06]}  Rd5 {[%clk 0:00:05]} 53. Rf8+ {[%clk 0:00:06]}  Ke6 {[%clk 0:00:06]} 54. Re8+ {[%clk 0:00:06]}  Kf6 {[%clk 0:00:06]} 55. Ra8 {[%clk 0:00:03]}  Kf5 {[%clk 0:00:06]} 56. Ra6 {[%clk 0:00:04]}  Rc5 {[%clk 0:00:05]} 57. Ra7 {[%clk 0:00:03]}  Rd5 {[%clk 0:00:05]} 58. Ra8 {[%clk 0:00:03]}  Rc5 {[%clk 0:00:06]} 59. Rf8+ {[%clk 0:00:03]}  Ke6 {[%clk 0:00:06]} 60. Kf2 {[%clk 0:00:04]}  Rc2+ {[%clk 0:00:05]} 61. Kg3 {[%clk 0:00:04]}  Ra2 {[%clk 0:00:06]} 62. Re8+ {[%clk 0:00:03]}  Kf6 {[%clk 0:00:06]} 63. Rf8+ {[%clk 0:00:02]}  Ke6 {[%clk 0:00:05]} 64. Re8+ {[%clk 0:00:02]}  Kf6 {[%clk 0:00:06]} 65. Rf8+ {[%clk 0:00:03]}  Ke6 {[%clk 0:00:07]} 1/2-1/2


[Site "https://www.chess.com"]

[Event "Titled Tuesday Blitz July 20 2021"]
[White "Arabidze, Meri"]
[Black "Zaksaite, Salomeja"]
[WhiteFideId "13604040"]
[BlackFideId "12801496"]
[WhiteElo "2432"]
[BlackElo "2002"]
[Result "1-0"]
[Round "03"]
[TimeControl "180+1"]
[Date "2021.07.21"]
[WhiteClock "0:01:24"]
[BlackClock "0:00:02"]

1. Nf3 {[%clk 0:02:57]}  Nf6 {[%clk 0:03:00]} 2. g3 {[%clk 0:02:57]}  g6 {[%clk 0:03:00]} 3. Bg2 {[%clk 0:02:57]}  Bg7 {[%clk 0:03:01]} 4. O-O {[%clk 0:02:58]}  d5 {[%clk 0:03:01]} 5. b3 {[%clk 0:02:56]}  Ne4 {[%clk 0:02:57]} 6. c3 {[%clk 0:02:57]}  O-O {[%clk 0:02:57]} 7. Bb2 {[%clk 0:02:57]}  c6 {[%clk 0:02:55]} 8. d3 {[%clk 0:02:57]}  Nd6 {[%clk 0:02:55]} 9. Nbd2 {[%clk 0:02:56]}  e5 {[%clk 0:02:54]} 10. e4 {[%clk 0:02:55]}  Be6 {[%clk 0:02:45]} 11. Qc2 {[%clk 0:02:55]}  h6 {[%clk 0:02:38]} 12. Rfe1 {[%clk 0:02:55]}  Nd7 {[%clk 0:02:32]} 13. exd5 {[%clk 0:02:50]}  cxd5 {[%clk 0:02:16]} 14. c4 {[%clk 0:02:50]}  d4 {[%clk 0:02:06]} 15. b4 {[%clk 0:02:43]}  Rc8 {[%clk 0:02:04]} 16. a4 {[%clk 0:02:36]}  Re8 {[%clk 0:01:40]} 17. a5 {[%clk 0:02:35]}  f5 {[%clk 0:01:31]} 18. Nb3 {[%clk 0:02:32]}  e4 {[%clk 0:01:21]} 19. Nfxd4 {[%clk 0:02:32]}  exd3 {[%clk 0:01:17]} 20. Qxd3 {[%clk 0:02:32]}  Bxc4 {[%clk 0:01:14]} 21. Qd2 {[%clk 0:02:32]}  Rxe1+ {[%clk 0:00:54]} 22. Rxe1 {[%clk 0:02:33]}  Ne5 {[%clk 0:00:54]} 23. Nc5 {[%clk 0:02:24]}  Rxc5 {[%clk 0:00:24]} 24. bxc5 {[%clk 0:02:22]}  Ne4 {[%clk 0:00:25]} 25. Qc2 {[%clk 0:02:05]}  Bd5 {[%clk 0:00:15]} 26. Nf3 {[%clk 0:01:59]}  Qxa5 {[%clk 0:00:14]} 27. Rd1 {[%clk 0:01:48]}  Nxf3+ {[%clk 0:00:08]} 28. Bxf3 {[%clk 0:01:49]}  Bxb2 {[%clk 0:00:07]} 29. Rxd5 {[%clk 0:01:38]}  Qe1+ {[%clk 0:00:05]} 30. Kg2 {[%clk 0:01:39]}  Bf6 {[%clk 0:00:02]} 31. Bxe4 {[%clk 0:01:38]}  fxe4 {[%clk 0:00:02]} 32. Rd6 {[%clk 0:01:34]}  e3 {[%clk 0:00:02]} 33. Qxg6+ {[%clk 0:01:24]} 1-0


[Site "https://www.chess.com"]

[Event "Titled Tuesday Blitz July 20 2021"]
[White "Bethke, Richard"]
[Black "GrafLermontov"]
[WhiteFideId "12959243"]
[WhiteElo "2386"]
[BlackElo "2543"]
[Result "0-1"]
[Round "03"]
[TimeControl "180+1"]
[Date "2021.07.21"]
[WhiteClock "0:00:02"]
[BlackClock "0:00:11"]

1. e4 {[%clk 0:03:00]}  c5 {[%clk 0:02:57]} 2. Nf3 {[%clk 0:03:01]}  e6 {[%clk 0:02:55]} 3. d4 {[%clk 0:03:01]}  cxd4 {[%clk 0:02:56]} 4. Nxd4 {[%clk 0:03:02]}  Nc6 {[%clk 0:02:56]} 5. Nc3 {[%clk 0:03:01]}  Qc7 {[%clk 0:02:57]} 6. Qd3 {[%clk 0:03:01]}  a6 {[%clk 0:02:56]} 7. Nxc6 {[%clk 0:03:01]}  bxc6 {[%clk 0:02:56]} 8. Qg3 {[%clk 0:03:01]}  Qxg3 {[%clk 0:02:54]} 9. hxg3 {[%clk 0:03:02]}  d5 {[%clk 0:02:54]} 10. Bd3 {[%clk 0:02:58]}  h6 {[%clk 0:02:44]} 11. Bd2 {[%clk 0:02:52]}  Nf6 {[%clk 0:02:42]} 12. O-O-O {[%clk 0:02:46]}  Rb8 {[%clk 0:02:33]} 13. f3 {[%clk 0:02:42]}  Bd6 {[%clk 0:02:29]} 14. g4 {[%clk 0:02:41]}  Nd7 {[%clk 0:02:15]} 15. g5 {[%clk 0:02:41]}  h5 {[%clk 0:02:15]} 16. g6 {[%clk 0:02:41]}  f6 {[%clk 0:02:10]} 17. exd5 {[%clk 0:02:36]}  cxd5 {[%clk 0:02:10]} 18. Rhe1 {[%clk 0:02:06]}  Ne5 {[%clk 0:02:08]} 19. Bf1 {[%clk 0:02:04]}  Kd7 {[%clk 0:02:02]} 20. Bf4 {[%clk 0:01:55]}  Nxg6 {[%clk 0:01:52]} 21. Bxd6 {[%clk 0:01:54]}  Kxd6 {[%clk 0:01:53]} 22. Rd4 {[%clk 0:01:42]}  f5 {[%clk 0:01:36]} 23. Red1 {[%clk 0:01:18]}  Ne7 {[%clk 0:01:32]} 24. f4 {[%clk 0:01:12]}  Rb6 {[%clk 0:01:27]} 25. Na4 {[%clk 0:01:12]}  Rc6 {[%clk 0:01:24]} 26. c4 {[%clk 0:01:12]}  Bd7 {[%clk 0:01:23]} 27. Kb1 {[%clk 0:01:06]}  Rb8 {[%clk 0:01:06]} 28. Nc3 {[%clk 0:00:59]}  Kc7 {[%clk 0:00:40]} 29. cxd5 {[%clk 0:00:52]}  Nxd5 {[%clk 0:00:41]} 30. Nxd5+ {[%clk 0:00:53]}  exd5 {[%clk 0:00:42]} 31. Rxd5 {[%clk 0:00:54]}  Be6 {[%clk 0:00:42]} 32. Re5 {[%clk 0:00:52]}  Rb4 {[%clk 0:00:40]} 33. g3 {[%clk 0:00:46]}  h4 {[%clk 0:00:40]} 34. Bg2 {[%clk 0:00:36]}  Rd6 {[%clk 0:00:38]} 35. Rc5+ {[%clk 0:00:28]}  Kd7 {[%clk 0:00:36]} 36. Rxd6+ {[%clk 0:00:28]}  Kxd6 {[%clk 0:00:37]} 37. Rc6+ {[%clk 0:00:28]}  Ke7 {[%clk 0:00:36]} 38. gxh4 {[%clk 0:00:28]}  Rxf4 {[%clk 0:00:33]} 39. h5 {[%clk 0:00:24]}  Rf2 {[%clk 0:00:31]} 40. Rc2 {[%clk 0:00:14]}  Bxa2+ {[%clk 0:00:29]} 41. Kc1 {[%clk 0:00:14]}  Rxc2+ {[%clk 0:00:28]} 42. Kxc2 {[%clk 0:00:15]}  Bc4 {[%clk 0:00:26]} 43. Kc3 {[%clk 0:00:14]}  Bb5 {[%clk 0:00:25]} 44. Kd4 {[%clk 0:00:14]}  Kf6 {[%clk 0:00:26]} 45. Bf3 {[%clk 0:00:14]}  Kg5 {[%clk 0:00:24]} 46. Ke5 {[%clk 0:00:14]}  Bc4 {[%clk 0:00:25]} 47. b4 {[%clk 0:00:14]}  f4 {[%clk 0:00:20]} 48. Bd1 {[%clk 0:00:12]}  Bb5 {[%clk 0:00:19]} 49. Bf3 {[%clk 0:00:11]}  Be8 {[%clk 0:00:19]} 50. Be2 {[%clk 0:00:10]}  Bb5 {[%clk 0:00:13]} 51. Bf3 {[%clk 0:00:07]}  Bd7 {[%clk 0:00:13]} 52. Be2 {[%clk 0:00:07]}  Bc8 {[%clk 0:00:13]} 53. Ke4 {[%clk 0:00:03]}  Bb7+ {[%clk 0:00:12]} 54. Ke5 {[%clk 0:00:02]}  f3 {[%clk 0:00:13]} 55. Bf1 {[%clk 0:00:03]}  Kg4 {[%clk 0:00:13]} 56. Ke6 {[%clk 0:00:03]}  Kxh5 {[%clk 0:00:10]} 57. Kf7 {[%clk 0:00:01]}  g5 {[%clk 0:00:11]} 58. Kf6 {[%clk 0:00:02]}  g4 {[%clk 0:00:11]} 59. Kf5 {[%clk 0:00:02]}  g3 {[%clk 0:00:11]} 0-1


[Site "https://www.chess.com"]

[Event "Titled Tuesday Blitz July 20 2021"]
[White "Buscar, Michael"]
[Black "Gurvich, Vitaly"]
[WhiteFideId "2603616"]
[BlackFideId "24164852"]
[WhiteElo "2010"]
[BlackElo "2252"]
[Result "0-1"]
[Round "03"]
[TimeControl "180+1"]
[Date "2021.07.21"]
[WhiteClock "0:00:23"]
[BlackClock "0:02:06"]

1. d4 {[%clk 0:03:00]}  Nf6 {[%clk 0:02:59]} 2. Nf3 {[%clk 0:02:59]}  e6 {[%clk 0:02:58]} 3. g3 {[%clk 0:02:59]}  d5 {[%clk 0:02:58]} 4. Bg2 {[%clk 0:02:59]}  Nbd7 {[%clk 0:02:54]} 5. c4 {[%clk 0:03:00]}  dxc4 {[%clk 0:02:54]} 6. Na3 {[%clk 0:02:58]}  Nb6 {[%clk 0:02:53]} 7. Ne5 {[%clk 0:02:56]}  Bb4+ {[%clk 0:02:52]} 8. Bd2 {[%clk 0:02:56]}  Bxa3 {[%clk 0:02:50]} 9. bxa3 {[%clk 0:02:55]}  Qxd4 {[%clk 0:02:50]} 10. Nf3 {[%clk 0:02:42]}  Qd6 {[%clk 0:02:45]} 11. Qc2 {[%clk 0:02:38]}  Qxa3 {[%clk 0:02:43]} 12. h4 {[%clk 0:02:21]}  h6 {[%clk 0:02:42]} 13. O-O {[%clk 0:02:09]}  Bd7 {[%clk 0:02:22]} 14. Ne5 {[%clk 0:02:07]}  Ba4 {[%clk 0:02:22]} 15. Qb1 {[%clk 0:01:57]}  Qc5 {[%clk 0:02:20]} 16. Bxb7 {[%clk 0:01:40]}  Rb8 {[%clk 0:02:19]} 17. Nxf7 {[%clk 0:01:20]}  Kxf7 {[%clk 0:02:17]} 18. Bb4 {[%clk 0:01:20]}  Qf5 {[%clk 0:02:15]} 19. e4 {[%clk 0:01:19]}  Qh3 {[%clk 0:02:15]} 20. e5 {[%clk 0:00:23]}  Ng4 {[%clk 0:02:06]} 0-1


[Site "https://www.chess.com"]

[Event "Titled Tuesday Blitz July 20 2021"]
[White "Coto Mederos, Michel"]
[Black "Jobava, Baadur"]
[WhiteFideId "3508528"]
[BlackFideId "13601520"]
[WhiteElo "2427"]
[BlackElo "2748"]
[Result "0-1"]
[Round "03"]
[TimeControl "180+1"]
[Date "2021.07.21"]
[WhiteClock "0:00:01"]
[BlackClock "0:01:02"]

1. c4 {[%clk 0:03:00]}  c6 {[%clk 0:02:59]} 2. d4 {[%clk 0:02:59]}  d5 {[%clk 0:03:00]} 3. Nf3 {[%clk 0:02:58]}  Nf6 {[%clk 0:03:00]} 4. Nc3 {[%clk 0:02:59]}  dxc4 {[%clk 0:03:01]} 5. a4 {[%clk 0:02:59]}  a5 {[%clk 0:03:01]} 6. e3 {[%clk 0:02:50]}  Bg4 {[%clk 0:03:00]} 7. Bxc4 {[%clk 0:02:50]}  e6 {[%clk 0:03:01]} 8. O-O {[%clk 0:02:43]}  Bb4 {[%clk 0:03:00]} 9. h3 {[%clk 0:02:41]}  Bh5 {[%clk 0:02:59]} 10. Qe2 {[%clk 0:02:38]}  Nbd7 {[%clk 0:02:51]} 11. Rd1 {[%clk 0:02:34]}  O-O {[%clk 0:02:47]} 12. e4 {[%clk 0:02:32]}  Re8 {[%clk 0:02:40]} 13. Bg5 {[%clk 0:02:20]}  h6 {[%clk 0:02:39]} 14. Bf4 {[%clk 0:02:07]}  Qb6 {[%clk 0:02:33]} 15. Qe3 {[%clk 0:01:53]}  e5 {[%clk 0:02:23]} 16. Bxh6 {[%clk 0:01:00]}  gxh6 {[%clk 0:02:11]} 17. Qxh6 {[%clk 0:00:54]}  Bxf3 {[%clk 0:01:43]} 18. gxf3 {[%clk 0:00:41]}  Bf8 {[%clk 0:01:39]} 19. Qg6+ {[%clk 0:00:27]}  Kh8 {[%clk 0:01:39]} 20. Bxf7 {[%clk 0:00:27]}  exd4 {[%clk 0:01:38]} 21. Ne2 {[%clk 0:00:18]}  Bg7 {[%clk 0:01:26]} 22. Rxd4 {[%clk 0:00:12]}  Ne5 {[%clk 0:01:25]} 23. Bxe8 {[%clk 0:00:08]}  Nxg6 {[%clk 0:01:25]} 24. Bxg6 {[%clk 0:00:09]}  Qxb2 {[%clk 0:01:23]} 25. Re1 {[%clk 0:00:09]}  Nd5 {[%clk 0:01:19]} 26. Rdd1 {[%clk 0:00:03]}  Bc3 {[%clk 0:01:08]} 27. Nxc3 {[%clk 0:00:03]}  Nxc3 {[%clk 0:01:09]} 28. Rd3 {[%clk 0:00:02]}  Rg8 {[%clk 0:01:08]} 29. Rd6 {[%clk 0:00:02]}  Ne2+ {[%clk 0:01:06]} 30. Kh1 {[%clk 0:00:02]}  Nf4 {[%clk 0:01:04]} 31. Bf5 {[%clk 0:00:01]}  Qxf2 {[%clk 0:01:02]} 0-1


[Site "https://www.chess.com"]